Workbook

Sheet 기본작업
A1: [표1]
A2: 하반기 신입사원 지원 현황
A4: 성 명 | B4: 지원부서 | C4: 필 기 | D4: 자격증 | E4: 면 접 | F4: 평 균 | G4: 결 과
A5: 권유식 | B5: 총무부 | C5: 85 | D5: 60 | E5: 90 | F5: 78.3 | G5: 합격
A6: 고광명 | B6: 영업부 | C6: 75 | D6: 80 | E6: 90 | F6: 81.7 | G6: 합격
A7: 김순식 | B7: 인사부 | C7: 90 | D7: 40 | E7: 80 | F7: 70 | G7: 불합격
A8: 도현명 | B8: 인사부 | C8: 80 | D8: 80 | E8: 70 | F8: 76.7 | G8: 합격
A9: 박문수 | B9: 총무부 | C9: 85 | D9: 100 | E9: 80 | F9: 88.3 | G9: 합격
A10: 이기자 | B10: 영업부 | C10: 90 | D10: 60 | E10: 90 | F10: 80 | G10: 합격
A11: 장성태 | B11: 총무부 | C11: 66 | D11: 69 | E11: 84 | F11: 73 | G11: 불합격
A12: 배승우 | B12: 홍보부 | C12: 95 | D12: 76 | E12: 79 | F12: 83.3 | G12: 합격
A13: 장병철 | B13: 관리부 | C13: 65 | D13: 82 | E13: 72 | F13: 73 | G13: 불합격
A14: 우병순 | B14: 홍보부 | C14: 91 | D14: 86 | E14: 92 | F14: 89.7 | G14: 합격
A15: 오장규 | B15: 관리부 | C15: 84 | D15: 91 | E15: 95 | F15: 90 | G15: 합격
A16: 추병선 | B16: 영업부 | C16: 89 | D16: 92 | E16: 90 | F16: 90.3 | G16: 불합격
A17: 김달호 | B17: 영업부 | C17: 60 | D17: 60 | E17: 80 | F17: 66.7 | G17: 불합격
A18: 하지만 | B18: 인사부 | C18: 95 | D18: 80 | E18: 90 | F18: 88.3 | G18: 합격
A19: 한기철 | B19: 관리부 | C19: 65 | D19: 80 | E19: 90 | F19: 78.3 | G19: 합격
A21: 조건
A22: =OR(LEFT(A5,1)="장",B5="인사부",F5>=90) -> FALSE
A24: 성 명 | B24: 지원부서 | C24: 평 균
A25: 김순식 | B25: 인사부 | C25: 70
A26: 도현명 | B26: 인사부 | C26: 76.7
A27: 장성태 | B27: 총무부 | C27: 73
A28: 장병철 | B28: 관리부 | C28: 73
A29: 오장규 | B29: 관리부 | C29: 90
A30: 추병선 | B30: 영업부 | C30: 90.3
A31: 하지만 | B31: 인사부 | C31: 88.3

Sheet 계산작업
A1: [표1] | D1: [표2]
A2: 담당지역 | B2: 급여합계 | D2: 담당지역 | E2: 판매
A3: 강서구 | B3: =SUM(($C$9:$C$17=A3)*$D$9:$D$17) -> 8750000 | E3: 1부 | F3: 2부 | G3: 3부
A4: 강동구 | B4: =SUM(($C$9:$C$17=A4)*$D$9:$D$17) -> 4450000 | D4: 강서구 | E4: =MAX(($C$9:$C$17=$D4)*(RIGHT($B$9:$B$17,2)=E$3)*$D$9:$D$17) -> 1550000 | F4: =MAX(($C$9:$C$17=$D4)*(RIGHT($B$9:$B$17,2)=F$3)*$D$9:$D$17) -> 2150000 | G4: =MAX(($C$9:$C$17=$D4)*(RIGHT($B$9:$B$17,2)=G$3)*$D$9:$D$17) -> 2750000
A5: 성북구 | B5: =SUM(($C$9:$C$17=A5)*$D$9:$D$17) -> 3870000 | D5: 강동구 | E5: =MAX(($C$9:$C$17=$D5)*(RIGHT($B$9:$B$17,2)=E$3)*$D$9:$D$17) -> 1250000 | F5: =MAX(($C$9:$C$17=$D5)*(RIGHT($B$9:$B$17,2)=F$3)*$D$9:$D$17) -> 1970000 | G5: =MAX(($C$9:$C$17=$D5)*(RIGHT($B$9:$B$17,2)=G$3)*$D$9:$D$17) -> 1230000
D6: 성북구 | E6: =MAX(($C$9:$C$17=$D6)*(RIGHT($B$9:$B$17,2)=E$3)*$D$9:$D$17) -> 1560000 | F6: =MAX(($C$9:$C$17=$D6)*(RIGHT($B$9:$B$17,2)=F$3)*$D$9:$D$17) -> 2310000 | G6: =MAX(($C$9:$C$17=$D6)*(RIGHT($B$9:$B$17,2)=G$3)*$D$9:$D$17) -> 0
A7: [표3]
A8: 성명 | B8: 부서 | C8: 담당지역 | D8: 급여 | E8: 대출금 | F8: 이자(연리) | G8: 기간(년) | H8: 매월불입금 | I8: 투자 가치 | J8: 현재 가치
A9: 김정원 | B9: 판매1부 | C9: 강서구 | D9: 1550000 | E9: 10000000 | F9: 0.1 | G9: 3 | H9: =PMT(F9/12,G9*12,-E9) -> 322671.8719 | I9: =ROUND(FV(F9/12,G9*12,-D9*0.3),-3) -> 19429000 | J9: =PV(F9/12,G9*12,-D9*0.3) -> 14410924.55
A10: 박경진 | B10: 판매1부 | C10: 강동구 | D10: 1250000 | E10: 5000000 | F10: 0.1 | G10: 1 | H10: =PMT(F10/12,G10*12,-E10) -> 439579.4362 | I10: =ROUND(FV(F10/12,G10*12,-D10*0.3),-3) -> 4712000 | J10: =PV(F10/12,G10*12,-D10*0.3) -> 4265440.659
A11: 반상현 | B11: 판매2부 | C11: 성북구 | D11: 2310000 | E11: 40000000 | F11: 0.1 | G11: 5 | H11: 849881.7885 | I11: 53664000 | J11: 32616300.73
A12: 어지순 | B12: 판매1부 | C12: 성북구 | D12: 1560000 | E12: 20000000 | F12: 0.1 | G12: 3 | H12: 645343.7439 | I12: 19554000 | J12: 14503898.25
A13: 유건석 | B13: 판매3부 | C13: 강서구 | D13: 2300000 | E13: 50000000 | F13: 0.1 | G13: 5 | H13: 1062352.236 | I13: 53432000 | J13: 32475104.63
A14: 은지은 | B14: 판매3부 | C14: 강동구 | D14: 1230000 | E14: 3000000 | F14: 0.1 | G14: 1 | H14: 263747.6617 | I14: 4637000 | J14: 4197193.609
A15: 이순자 | B15: 판매2부 | C15: 강서구 | D15: 2150000 | E15: 20000000 | F15: 0.1 | G15: 3 | H15: 645343.7439 | I15: 26949000 | J15: 19989346.95
A16: 제장부 | B16: 판매2부 | C16: 강동구 | D16: 1970000 | E16: 70000000 | F16: 0.1 | G16: 7 | H16: 1162082.882 | I16: 71482000 | J16: 35599870.41
A17: 최지열 | B17: 판매3부 | C17: 강서구 | D17: 2750000 | E17: 50000000 | F17: 0.1 | G17: 5 | H17: 1062352.236 | I17: 63886000 | J17: 38828929.44
A19: [표4]
A20: 사원명 | B20: 입사일 | C20: 신장 | D20: 몸무게 | E20: 근속수당 | F20: 표준몸무게
A21: 김명식 | B21: 2023-03-01 | C21: 178 | D21: 72 | E21: =IF(YEAR(TODAY())-YEAR(B21)>=10,150000,50000) -> 50000
A22: 박신아 | B22: 2013-01-01 | C22: 163 | D22: 52 | E22: =IF(YEAR(TODAY())-YEAR(B22)>=10,150000,50000) -> 150000
A23: 김철호 | B23: 2013-01-01 | C23: 160 | D23: 49 | E23: 150000
A24: 서진혁 | B24: 2015-01-01 | C24: 172 | D24: 58 | E24: 50000
A25: 김혜진 | B25: 2022-01-01 | C25: 170 | D25: 62 | E25: 50000
A26: 이면철 | B26: 2017-02-01 | C26: 168 | D26: 60 | E26: 50000
A27: 강진성 | B27: 2020-02-01 | C27: 160 | D27: 58 | E27: 50000
A29: [표5]
A30: 동 | B30: 호 | C30: 전력량(kwh) | D30: 사용요금 | E30: 납입일 | F30: 전월전력량 | G30: 그래프
A31: 101 | B31: 101 | C31: 230 | D31: 46838 | E31: 2020-08-24 | F31: 549
A32: 102 | B32: 103 | C32: 415 | D32: 143362.5 | E32: 2020-08-27 | F32: 269
A33: 102 | B33: 104 | C33: 157 | D33: 29860.3 | E33: 2020-08-18 | F33: 223
A34: 102 | B34: 303 | C34: 315 | D34: 74365.5 | E34: 2020-08-11 | F34: 439
A35: 102 | B35: 403 | C35: 358 | D35: 92326.6 | E35: 2020-08-26 | F35: 81
A36: 102 | B36: 304 | C36: 159 | D36: 30236.1 | E36: 2020-08-31 | F36: 443
A37: 101 | B37: 601 | C37: 227 | D37: 45996.2 | E37: 2020-08-25 | F37: 61
A38: 101 | B38: 602 | C38: 569 | D38: 187315.5 | E38: 2020-08-27 | F38: 91

Sheet 분석작업-1
A2: 개설일(월) | B2: 쇼핑몰 | C2: 평균: 운영비총액 | D2: 평균: 판매매출액 | E2: 평균: 순이익
A3: 04월 | B3: 음악쇼핑몰 | C3: 1217947.5 | D3: 4844359.5 | E3: 3626412
B4: 종합쇼핑몰 | C4: 778222.3333 | D4: 3904634.333 | E4: 3126412
A5: 05월 | B5: 가전쇼핑몰 | C5: 906466.3333 | D5: 628998 | E5: -277468.3333
B6: 여행정보몰 | C6: 447778 | D6: 532342.5 | E6: 84564.5
B7: 예술쇼핑몰 | C7: 408779 | D7: 0 | E7: -408779
B8: 음악쇼핑몰 | C8: 1019134 | D8: 3350381.667 | E8: 2331247.667
B9: 종합쇼핑몰 | C9: 767377 | D9: 822620.6667 | E9: 55243.66667
A10: 총합계 | C10: 822798 | D10: 1967058.5 | E10: 1144260.5

Sheet 분석작업-2
A2: [표1]
A3: 성명 | B3: 부서 | C3: 직급 | D3: 직위 | E3: 인사고과 | F3: 기본급 | G3: 상여비율 | H3: 수당 | I3: 총급여액
A4: 김경수 | B4: 판매1팀 | C4: 3급 | D4: 과장 | E4: 25 | F4: 1350000 | G4: 0.07 | H4: 229500 | I4: 1579500
A5: 김지연 | B5: 홍보2팀 | C5: 2급 | D5: 부장 | E5: 28 | F5: 1450000 | G5: 0.07 | H5: 246500 | I5: 1696500
A6: 이승연 | B6: 기획1팀 | C6: 2급 | D6: 부장 | E6: 30 | F6: 1450000 | G6: 0.1 | H6: 290000 | I6: 1740000
A7: 김세연 | B7: 홍보1팀 | C7: 3급 | D7: 과장 | E7: 10 | F7: 1350000 | G7: 0.05 | H7: 202500 | I7: 1552500
A8: 박원래 | B8: 판매2팀 | C8: 2급 | D8: 부장 | E8: 24 | F8: 1450000 | G8: 0.07 | H8: 246500 | I8: 1696500
A9: 이학봉 | B9: 기획3팀 | C9: 3급 | D9: 과장 | E9: 20 | F9: 1350000 | G9: 0.07 | H9: 229500 | I9: 1579500
A10: 지순녀 | B10: 기획2팀 | C10: 4급 | D10: 대리 | E10: 18 | F10: 1200000 | G10: 0.05 | H10: 180000 | I10: 1380000
A11: 최지은 | B11: 홍보3팀 | C11: 4급 | D11: 대리 | E11: 15 | F11: 1200000 | G11: 0.05 | H11: 180000 | I11: 1380000
A12: 홍길동 | B12: 판매3팀 | C12: 4급 | D12: 대리 | E12: 6 | F12: 1200000 | G12: 0.03 | H12: 156000 | I12: 1356000

Sheet 기타작업-1
B1: 성적 일람표
B3: 학번 | C3: 이름 | D3: 학과 | E3: 성별 | F3: 중간 | G3: 기말 | H3: 과제 | I3: 출석 | J3: 총점
B4: C003 | C4: 최고봉 | D4: 정보처리과 | E4: 남 | F4: 28 | G4: 38 | H4: 8 | I4: 17 | J4: =SUM(F4:I4) -> 91
B5: A003 | C5: 장샛별 | D5: 정보처리과 | E5: 여 | F5: 25 | G5: 33 | H5: 5 | I5: 20 | J5: 83
B6: C002 | C6: 조은별 | D6: 사무자동화과 | E6: 남 | F6: 20 | G6: 35 | H6: 9 | I6: 18 | J6: 82
B7: B003 | C7: 새희망 | D7: 사무자동화과 | E7: 여 | F7: 29 | G7: 38 | H7: 10 | I7: 19 | J7: 96
B8: A002 | C8: 박인자 | D8: 웹디자인과 | E8: 여 | F8: 27 | G8: 30 | H8: 8 | I8: 12 | J8: 77
B9: C001 | C9: 김승리 | D9: 정보처리과 | E9: 남 | F9: 26 | G9: 32 | H9: 10 | I9: 18 | J9: 86
B10: B002 | C10: 최적극 | D10: 사무자동화과 | E10: 남 | F10: 25 | G10: 34 | H10: 8 | I10: 20 | J10: 87
B11: B001 | C11: 이용감 | D11: 웹디자인과 | E11: 남 | F11: 29 | G11: 40 | H11: 10 | I11: 18 | J11: 97
B12: A004 | C12: 김튼튼 | D12: 정보처리과 | E12: 남 | F12: 30 | G12: 37 | H12: 8 | I12: 18 | J12: 93
B13: A001 | C13: 강성실 | D13: 정보처리과 | E13: 여 | F13: 25 | G13: 28 | H13: 5 | I13: 15 | J13: 73

Sheet 기타작업-2
A2: 차량 5부제 시행 현황
A4: 차량번호 | B4: 쉬는날
B5: 0 | C5: 1 | D5: 2 | E5: 3 | F5: 4 | G5: 5 | H5: 6 | I5: 7 | J5: 8 | K5: 9
A6: 7570 | B6: 1 | C6: 0 | D6: 1 | E6: 0 | F6: 1 | G6: 0 | H6: 1 | I6: 0 | J6: 1 | K6: 0
A7: 4889 | B7: 0 | C7: 1 | D7: 0 | E7: 1 | F7: 0 | G7: 1 | H7: 0 | I7: 1 | J7: 0 | K7: 1
A8: 5076 | B8: 1 | C8: 0 | D8: 1 | E8: 0 | F8: 1 | G8: 0 | H8: 1 | I8: 0 | J8: 1 | K8: 0
A9: 7257 | B9: 0 | C9: 1 | D9: 0 | E9: 1 | F9: 0 | G9: 1 | H9: 0 | I9: 1 | J9: 0 | K9: 1
A10: 8222 | B10: 1 | C10: 0 | D10: 1 | E10: 0 | F10: 1 | G10: 0 | H10: 1 | I10: 0 | J10: 1 | K10: 0
A11: 2008 | B11: 1 | C11: 0 | D11: 1 | E11: 0 | F11: 1 | G11: 0 | H11: 1 | I11: 0 | J11: 1 | K11: 0
A12: 9033 | B12: 0 | C12: 1 | D12: 0 | E12: 1 | F12: 0 | G12: 1 | H12: 0 | I12: 1 | J12: 0 | K12: 1
A13: 5574 | B13: 1 | C13: 0 | D13: 1 | E13: 0 | F13: 1 | G13: 0 | H13: 1 | I13: 0 | J13: 1 | K13: 0
A14: 2917 | B14: 0 | C14: 1 | D14: 0 | E14: 1 | F14: 0 | G14: 1 | H14: 0 | I14: 1 | J14: 0 | K14: 1
A15: 3763 | B15: 0 | C15: 1 | D15: 0 | E15: 1 | F15: 0 | G15: 1 | H15: 0 | I15: 1 | J15: 0 | K15: 1
A16: 9452 | B16: 1 | C16: 0 | D16: 1 | E16: 0 | F16: 1 | G16: 0 | H16: 1 | I16: 0 | J16: 1 | K16: 0
A17: 5005 | B17: 0 | C17: 1 | D17: 0 | E17: 1 | F17: 0 | G17: 1 | H17: 0 | I17: 1 | J17: 0 | K17: 1

Sheet 기타작업-3
A1: 무선 통신 전화요금
G2: [참조표]
A3: 고객명 | B3: 등급코드 | C3: 시간당 단가 | D3: 기본요금 | E3: 할인요금 | G3: 등급코드 | H3: 시간당 단가 | I3: 기본요금 | J3: 할인요금
A4: 홍길동 | B4: A | C4: 86 | D4: 45000 | E4: 4500 | G4: A | H4: 86 | I4: 45000 | J4: 4500
A5: 이상민 | B5: C | C5: 104 | D5: 30000 | E5: 1500 | G5: B | H5: 81 | I5: 40000 | J5: 4000
G6: C | H6: 104 | I6: 30000 | J6: 1500
G7: D | H7: 52 | I7: 25000 | J7: 1250
